bitfinex-derivatives/quotes_SOLF0:USTF0_20250411
["timestamp","ask_amount","ask_price","bid_price","bid_amount"]
[1744388770063,8.49341695,118.77,118.72,44.53521695]
[1744388770366,8.4269,118.74,118.72,44.4695]
[1744388770567,8.4269,118.74,118.72,52.96291695]
[1744388770762,8.4269,118.74,118.72,16.92111695]
[1744388770968,5.95798544,118.73,118.71,9.88297191]
[1744388771157,8.49341695,118.74,118.71,9.88297191]
[1744388771364,6.01296069,118.73,118.71,9.88297191]
[1744388771661,8.48734069,118.73,118.71,9.88297191]
[1744388772167,0.05964069,118.73,118.72,8.428]
[1744388772363,6.0091053,118.73,118.71,18.37638886]
[1744388772563,0.05964069,118.73,118.71,8.49341695]
[1744388772864,8.48704069,118.73,118.7,16.92251695]
[1744388773067,8.55305764,118.73,118.69,2.1218]
[1744388773267,8.55305764,118.73,118.69,10.61521695]
[1744388773458,16.98075764,118.73,118.7,8.4294]
[1744388773654,8.48734069,118.73,118.7,16.92281695]
[1744388773864,0.05964069,118.73,118.7,8.49341695]
[1744388774169,0.05964069,118.73,118.69,2.1218]
[1744388774369,0.05964069,118.73,118.71,8.49341695]
[1744388774575,0.05964069,118.73,118.72,8.428]
[1744388774865,0.05964069,118.73,118.71,8.49341695]
[1744388775267,8.48694069,118.73,118.7,8.49341695]
[1744388775467,0.05964069,118.73,118.69,2.1218]
[1744388775763,0.05964069,118.73,118.69,10.61521695]
[1744388776264,8.55305764,118.73,118.69,2.1218]
[1744388776468,8.4291,118.71,118.68,50.84401695]
[1744388776669,8.4291,118.71,118.68,42.3506]
[1744388776871,8.49341695,118.7,118.65,33.92]
[1744388777068,8.4307,118.69,118.66,8.49341695]
[1744388777269,0.0556757,118.69,118.65,42.41341695]
[1744388777670,8.49341695,118.68,118.63,6.592]
[1744388777864,8.54909265,118.69,118.64,8.49341695]
[1744388778067,0.0556757,118.69,118.66,8.4322]
[1744388778265,0.0556757,118.69,118.66,8.49341695]
[1744388778467,0.0556757,118.69,118.63,6.592]
[1744388778468,0.0556757,118.69,118.67,8.49341695]
[1744388778861,0.0556757,118.69,118.67,16.92451695]
[1744388779576,0.0556757,118.69,118.65,33.92]
[1744388779877,8.4858757,118.69,118.66,8.49341695]
[1744388780068,8.4858757,118.69,118.66,16.92521695]
[1744388780263,0.0556757,118.69,118.66,8.49341695]
[1744388780570,0.0556757,118.69,118.68,8.49341695]
[1744388780972,0.0556757,118.69,118.68,16.92431695]
[1744388781473,0.0556757,118.69,118.67,16.92471695]
[1744388781670,0.0556757,118.69,118.67,8.4313]
[1744388783175,0.0556757,118.69,118.66,8.49341695]
[1744388783374,0.0556757,118.69,118.67,8.49341695]
[1744388783566,0.0556757,118.69,118.68,8.49341695]
[1744388784173,0.0556757,118.69,118.68,16.92431695]
[1744388785279,8.4277,118.73,118.68,42.41341695]
[1744388785468,8.4277,118.73,118.69,8.49341695]
[1744388785669,33.92,118.75,118.71,8.49341695]
[1744388786170,33.92,118.75,118.73,8.4268]
[1744388786171,0.05924841,118.74,118.73,8.4268]
[1744388786973,0.05924841,118.74,118.72,8.54909265]
[1744388787172,33.92,118.83,118.73,8.49341695]
[1744388787471,8.4241,118.78,118.75,8.49341695]
[1744388787676,8.4241,118.78,118.75,16.91901695]
[1744388788374,0.06367734,118.78,118.76,8.425]
[1744388788573,0.06367734,118.78,118.76,8.49341695]
[1744388788973,0.06367734,118.78,118.77,8.4245]
[1744388789868,33.92,118.83,118.8,8.422]
[1744388790080,5.91543941,118.82,118.8,8.422]
[1744388790278,5.91543941,118.82,118.78,2.2226]
[1744388790478,33.92,118.83,118.8,8.4219]
[1744388790479,42.3402,118.83,118.8,8.4219]
[1744388790776,4.3477,118.87,118.78,2.2226]
[1744388790980,19.19428008,118.86,118.78,2.2226]
[1744388791274,8.47978907,118.84,118.81,0.06386493]
[1744388791478,5.91922106,118.83,118.81,0.06386493]
[1744388791680,8.4205,118.83,118.81,0.06386493]
[1744388793881,33.97988907,118.84,118.81,0.06386493]
[1744388794484,8.4209,118.83,118.81,0.06386493]
[1744388794675,33.97988907,118.84,118.81,0.06386493]
[1744388795474,47.25640616,118.84,118.81,0.06386493]
[1744388795675,13.27651709,118.82,118.75,17.49781709]
[1744388795983,33.92,118.81,118.75,4.2213]
[1744388796580,8.4238,118.78,118.75,12.6469]
[1744388796782,8.4814603,118.78,118.75,12.70298962]
[1744388797490,0.0576603,118.78,118.76,8.4252]
[1744388798182,8.4814603,118.78,118.76,8.4252]
[1744388798385,8.4814603,118.78,118.75,12.70288962]
[1744388798780,8.4252,118.76,118.75,0.05608962]
[1744388799283,8.4248,118.77,118.75,0.05608962]
[1744388800089,33.9776603,118.78,118.75,0.05608962]
[1744388800782,0.0576603,118.78,118.75,0.05608962]
[1744388801188,8.425,118.77,118.75,0.05608962]
[1744388801790,8.4816603,118.78,118.75,8.48178962]
[1744388802589,0.0576603,118.78,118.76,8.4251]
[1744388802786,0.0576603,118.78,118.75,0.05608962]
[1744388802990,0.0576603,118.78,118.75,8.48158962]
[1744388803290,8.4818603,118.78,118.75,8.48158962]
[1744388804589,8.4818603,118.78,118.76,8.4251]
[1744388804990,8.4818603,118.78,118.75,0.05608962]
[1744388805787,8.4818603,118.78,118.76,8.4251]
[1744388806385,0.0576603,118.78,118.75,0.05608962]
[1744388806785,0.0576603,118.78,118.75,33.95608962]
[1744388807080,0.0576603,118.78,118.77,8.4245]
[1744388807386,33.92,118.82,118.76,15.53301709]
[1744388807586,8.422,118.81,118.79,8.423]
[1744388808293,8.48474971,118.81,118.79,8.47814424]
[1744388808591,8.48474971,118.81,118.79,0.05514424]
[1744388809496,8.48474971,118.81,118.79,8.47784424]
[1744388817091,0.06274971,118.81,118.8,8.4223]
[1744388818094,8.48434971,118.81,118.79,8.47784424]
[1744388818387,0.06274971,118.81,118.79,8.47784424]
[1744388819288,0.06274971,118.81,118.79,16.96997868]
[1744388819895,8.48444971,118.81,118.79,16.96997868]
[1744388820885,0.06274971,118.81,118.8,8.4223]
[1744388821089,0.06274971,118.81,118.79,8.54727868]
[1744388821695,8.48464971,118.81,118.79,16.97007868]
[1744388822097,8.48464971,118.81,118.79,8.47794424]
[1744388823795,8.48464971,118.81,118.8,8.4223]
[1744388823988,0.06274971,118.81,118.8,8.4223]
[1744388824192,0.06274971,118.81,118.79,0.05514424]
[1744388824397,8.48474971,118.81,118.79,0.05514424]
[1744388824895,8.48474971,118.81,118.79,8.47794424]
[1744388825497,8.48474971,118.81,118.79,16.97007868]
[1744388825988,0.06274971,118.81,118.8,8.4223]
[1744388826192,0.06274971,118.81,118.79,8.54727868]
[1744388826701,8.48434971,118.81,118.79,16.96997868]
[1744388827999,8.48434971,118.81,118.79,8.47784424]
[1744388830913,0.06274971,118.81,118.79,8.47784424]
[1744388833211,0.06274971,118.81,118.8,8.4223]
[1744388834508,8.55488415,118.81,118.79,0.05514424]
[1744388834708,8.49213444,118.8,118.74,42.37213444]
[1744388835013,8.49213444,118.79,118.74,42.37213444]
[1744388835212,16.91583444,118.79,118.76,8.4249]
[1744388835508,8.4237,118.79,118.76,8.4249]
[1744388835713,8.48563553,118.79,118.76,8.48622131]
[1744388836211,8.4239,118.78,118.76,8.48622131]
[1744388836412,0.06193553,118.79,118.77,8.4245]
[1744388836813,0.06193553,118.79,118.78,8.4238]
[1744388838817,8.49213444,118.84,118.78,8.49213444]
[1744388839115,8.49213444,118.84,118.79,8.49213444]
[1744388839415,8.4213,118.82,118.78,8.49213444]
[1744388839609,8.4213,118.82,118.8,8.4221]
[1744388839817,8.48112752,118.82,118.8,8.47935941]
[1744388840314,8.4216,118.81,118.8,0.05725941]
[1744388841212,8.48112752,118.82,118.8,0.05725941]
[1744388841716,8.48112752,118.82,118.8,8.47915941]
[1744388843019,0.05982752,118.82,118.81,8.4216]
[1744388843213,0.05982752,118.82,118.81,16.91373444]
[1744388843619,0.05982752,118.82,118.81,8.4216]
[1744388844521,0.05982752,118.82,118.81,12.01077764]
[1744388845316,2.18,118.88,118.84,8.4188]
[1744388845522,2.18,118.88,118.84,16.91093444]
[1744388845722,8.4177,118.87,118.84,16.91093444]
[1744388845921,8.4177,118.87,118.85,8.4188]
[1744388846221,0.06360346,118.87,118.85,8.54760639]
[1744388846616,0.06360346,118.87,118.86,8.4177]
[1744388847823,8.48100346,118.87,118.85,16.96600639]
[1744388848121,0.06360346,118.87,118.85,16.96600639]
[1744388848322,0.06360346,118.87,118.85,8.54760639]
[1744388848921,0.06360346,118.87,118.86,8.4181]
[1744388849121,0.06360346,118.87,118.86,20.49572388]
[1744388851916,0.06360346,118.87,118.86,16.91023444]
[1744388852121,0.06360346,118.87,118.86,20.49002048]
[1744388853223,0.06360346,118.87,118.86,16.91023444]
[1744388860029,36.04,118.93,118.86,14.14816941]
[1744388860329,36.04,118.93,118.9,8.49213444]
[1744388861030,8.4144,118.92,118.9,8.54574485]
[1744388861229,36.09749733,118.93,118.9,8.54574485]
[1744388861423,8.4145,118.91,118.9,0.05361041]
[1744388864035,8.49213444,118.91,118.86,8.49213444]
[1744388864226,8.49213444,118.9,118.85,8.49213444]
[1744388864427,8.4176,118.87,118.85,16.91063444]
[1744388864626,8.4176,118.87,118.86,8.49213444]
[1744388864826,8.49213444,118.9,118.86,8.49213444]
[1744388865033,0.05868939,118.89,118.87,0.05917521]
[1744388865734,8.4167,118.88,118.87,0.05917521]
[1744388866232,0.05868939,118.89,118.87,8.55130965]
[1744388866431,0.05868939,118.89,118.88,8.49213444]
[1744388866633,0.05868939,118.89,118.88,16.90883444]
[1744388870131,0.00826876,118.89,118.88,19.05913444]
[1744388871032,0.00826876,118.89,118.88,22.62347194]
[1744388871834,10.5417,118.94,118.88,22.62347194]
[1744388872034,2.1286,118.94,118.91,16.90633444]
[1744388872534,36.1144,118.96,118.92,8.49213444]
[1744388872738,44.60653444,118.96,118.92,8.49213444]
[1744388873037,0.06238765,118.95,118.93,0.05732544]
[1744388874239,8.4127,118.94,118.93,0.05732544]
[1744388877739,16.90483444,118.94,118.93,0.05732544]
[1744388878738,8.4145,118.91,118.9,33.82]
[1744388878941,8.4145,118.91,118.89,8.49213444]
[1744388879541,8.4153,118.9,118.89,8.49213444]
[1744388880147,0.05531843,118.91,118.88,8.5478252]
[1744388880539,8.416,118.89,118.88,8.5478252]
[1744388881044,0.05531843,118.91,118.88,8.5478252]
[1744388881235,0.05531843,118.91,118.9,8.49213444]
[1744388883446,0.05531843,118.91,118.9,16.90743444]
[1744388884443,0.05531843,118.91,118.9,20.47383228]
[1744388884644,0.05531843,118.91,118.9,20.47382725]
[1744388886151,8.4127,118.94,118.92,8.4138]
[1744388886342,8.412,118.95,118.93,8.49213444]
[1744388886552,8.412,118.95,118.94,8.49213444]
[1744388890049,0.05360958,118.96,118.93,42.35568814]
[1744388890749,0.05360958,118.96,118.94,8.49213444]
[1744388891751,8.4117,118.95,118.94,8.49213444]
[1744388894341,0.05360958,118.96,118.93,8.55568814]
[1744388894653,8.4124,118.94,118.93,8.55568814]
[1744388894853,8.4124,118.94,118.93,12.12763336]
[1744388895255,8.46490958,118.96,118.93,45.92763336]
[1744388895456,0.05360958,118.96,118.95,8.49213444]
[1744388895657,0.05360958,118.96,118.93,42.35568814]
[1744388896654,8.4124,118.94,118.93,42.35568814]
[1744388896854,8.4124,118.94,118.93,3.63490573]
[1744388897057,8.4124,118.94,118.93,3.63498127]
[1744388898059,8.4124,118.94,118.93,0.0635537]
[1744388900561,8.4124,118.94,118.93,8.55568814]
[1744388900763,8.4124,118.94,118.93,0.0635537]
[1744388902167,42.32574402,118.96,118.93,8.55568814]
[1744388902168,8.4122,118.95,118.93,8.55568814]
[1744388902357,8.4122,118.95,118.94,8.49213444]
[1744388902767,8.4122,118.95,118.93,8.55568814]
[1744388903571,8.4122,118.95,118.94,8.49213444]
[1744388905269,8.46500958,118.96,118.94,16.90423444]
[1744388905571,0.05360958,118.96,118.95,8.49213444]
[1744388906467,0.05360958,118.96,118.95,16.90383444]
[1744388906770,0.05360958,118.96,118.95,20.48012181]
[1744388907370,0.05360958,118.96,118.95,12.06842181]
[1744388908270,0.05360958,118.96,118.95,20.48012181]
[1744388910869,8.46460958,118.96,118.95,3.57628737]
[1744388911075,0.05360958,118.96,118.93,42.33568814]
[1744388911276,0.05360958,118.96,118.94,3.57938392]
[1744388911574,8.412,118.95,118.93,50.74848814]
[1744388911774,8.412,118.95,118.94,3.57948612]
[1744388912074,0.05360958,118.96,118.94,3.57948612]
[1744388912075,8.46500958,118.96,118.94,3.57948612]
[1744388912274,0.05360958,118.96,118.93,50.74848814]
[1744388912477,0.05360958,118.96,118.94,12.07263757]
[1744388912675,0.05360958,118.96,118.94,8.49213444]
[1744388912876,8.4119,118.95,118.94,8.49213444]
[1744388913077,8.4119,118.95,118.94,12.07261814]
[1744388917675,8.46510958,118.96,118.94,20.48491814]
[1744388917876,8.46510958,118.96,118.95,3.5804837]
[1744388921879,8.46510958,118.96,118.95,12.07261814]
[1744388922682,0.05360958,118.96,118.95,20.48431814]
[1744388924582,0.05360958,118.96,118.95,20.48854151]
[1744388926783,8.4094,118.99,118.97,8.4099]
[1744388926985,8.4094,118.99,118.98,12.07684151]
[1744388927179,8.4094,118.99,118.98,3.58470707]
[1744388927684,8.4094,118.99,118.98,3.58497001]
[1744388927980,0.05667913,119.0,118.98,20.48640445]
[1744388928283,0.05667913,119.0,118.99,12.07710445]
[1744388928477,8.46487913,119.0,118.99,12.07710445]
[1744388928682,8.46487913,119.0,118.99,3.58497001]
[1744388929592,0.05667913,119.0,118.97,8.54711484]
[1744388930285,8.4094,118.99,118.97,8.54711484]
[1744388930690,0.05667913,119.0,118.98,12.07579821]
[1744388930891,0.05667913,119.0,118.98,8.49213444]
[1744388931884,8.46507913,119.0,118.98,16.90143444]
[1744388932081,0.05667913,119.0,118.98,8.49213444]
[1744388932276,0.05667913,119.0,118.99,8.49213444]
[1744388933086,0.05667913,119.0,118.99,12.07451609]
[1744388933786,0.05667913,119.0,118.99,20.48341609]
[1744388936382,0.05667913,119.0,118.99,12.07451609]
[1744388936588,0.05667913,119.0,118.98,16.90133444]
[1744388936879,8.46517913,119.0,118.98,16.90163444]
[1744388937689,8.46517913,119.0,118.99,3.57838597]
[1744388938184,8.46517913,119.0,118.98,16.90163444]
[1744388939383,8.46517913,119.0,118.99,12.06971253]
[1744388940388,0.05667913,119.0,118.99,20.47861253]
[1744388940982,0.05667913,119.0,118.99,12.06971253]
[1744388941489,0.05667913,119.0,118.99,20.47861253]
[1744388942993,8.46487913,119.0,118.99,3.57757809]
[1744388943189,0.05667913,119.0,118.97,8.54711484]
[1744388943693,8.4092,118.99,118.97,16.95691484]
[1744388943888,0.05667913,119.0,118.98,12.06877099]
[1744388944099,0.05667913,119.0,118.99,8.49213444]
[1744388944291,0.05667913,119.0,118.99,12.06892021]
[1744388944481,0.05667913,119.0,118.99,20.47782021]
[1744388944888,35.8748,119.05,118.99,45.78892021]
[1744388945089,8.4056,119.04,119.02,16.89883444]
[1744388945385,2.1987,119.09,119.02,8.49213444]
[1744388945591,2.1987,119.09,119.03,16.89793444]
[1744388945592,8.49213444,119.07,119.03,16.89793444]
[1744388945996,0.0603568,119.06,119.04,0.06375143]
[1744388946691,0.0603568,119.06,119.05,16.89683444]
[1744388947495,0.0603568,119.06,119.05,20.4689356]
[1744388947690,0.0603568,119.06,119.05,8.49213444]
[1744388948495,0.0603568,119.06,119.05,16.89683444]
[1744388949194,0.0603568,119.06,119.05,8.49213444]
[1744388949794,0.0603568,119.06,119.05,16.89683444]
[1744388950194,8.4642568,119.06,119.05,8.49213444]
[1744388950492,8.4642568,119.06,119.04,16.96088587]
[1744388951192,0.0603568,119.06,119.04,16.96088587]
[1744388952393,8.4644568,119.06,119.04,16.96088587]
[1744388953094,0.0603568,119.06,119.04,16.96088587]
[1744388954295,0.0603568,119.06,119.05,8.4047]
[1744388954487,0.0603568,119.06,119.04,8.55588587]
[1744388954797,0.0603568,119.06,119.04,16.96088587]
[1744388955093,0.0603568,119.06,119.05,8.49213444]
[1744388955493,0.0603568,119.06,119.05,16.89683444]
[1744388958693,0.0603568,119.06,119.04,0.06375143]
[1744388958897,16.89683444,119.05,119.04,0.06375143]
[1744388959103,8.4047,119.05,119.04,0.06375143]
[1744388960402,8.4068,119.02,119.0,44.38363444]
[1744388960597,8.49213444,119.03,118.99,8.49213444]
[1744388960898,8.49213444,119.03,118.99,16.90073444]
[1744388961199,8.4079,119.01,118.99,16.90073444]
[1744388961505,8.49213444,119.04,119.0,16.90023444]
[1744388961704,0.06429688,119.01,119.0,16.90023444]
[1744388964506,0.06429688,119.01,119.0,8.49213444]
[1744388965205,8.47179688,119.01,119.0,8.49213444]
[1744388965411,0.06429688,119.01,118.99,0.06228728]
[1744388966210,8.4082,119.0,118.99,0.06228728]
[1744388970918,8.49213444,119.07,118.99,12.12276296]
[1744388971219,8.49213444,119.06,119.02,8.49213444]
[1744388971413,8.4053,119.05,119.02,8.49213444]
[1744388971614,8.4053,119.05,119.01,8.4075]
[1744388971825,8.405,119.05,119.01,8.49213444]
[1744388972024,0.06100656,119.04,119.02,0.05650399]
[1744388972913,0.06100656,119.04,119.02,8.54863843]
[1744388973218,0.06100656,119.04,119.03,8.49213444]
[1744388973820,0.06100656,119.04,119.02,16.95503843]
[1744388974523,0.06100656,119.04,119.03,8.4061]
[1744388976520,0.06100656,119.04,119.03,16.89823444]
[1744388978721,0.06100656,119.04,119.03,8.4061]
[1744388980219,0.06100656,119.04,119.03,16.89823444]
[1744388981121,0.06100656,119.04,119.03,8.4061]
[1744388981317,0.06100656,119.04,119.03,16.89823444]
[1744388983221,0.06100656,119.04,119.03,20.47104573]
[1744388984123,8.49213444,119.09,119.06,8.4033]
[1744388984625,8.4028,119.08,119.06,8.4033]
[1744388984922,15.19463444,119.1,119.06,8.4033]
[1744388985116,0.05539073,119.08,119.06,8.46055921]
[1744388986726,8.45809073,119.08,119.06,8.46055921]
[1744388993423,0.05539073,119.08,119.06,8.54939365]
[1744388993629,0.05539073,119.08,119.06,0.05725921]
[1744388994130,0.05539073,119.08,119.06,8.46095921]
[1744388994630,8.45799073,119.08,119.06,0.05725921]
[1744388996033,8.45799073,119.08,119.06,8.46115921]
[1744389000934,8.45799073,119.08,119.07,16.89533444]
[1744389000935,0.05539073,119.08,119.07,16.89533444]
[1744389001229,0.05539073,119.08,119.06,8.54939365]
[1744389001435,8.4032,119.07,119.06,0.05725921]
[1744389002138,8.45839073,119.08,119.06,0.05725921]
[1744389002940,8.45839073,119.08,119.06,16.95319365]
[1744389003138,0.05539073,119.08,119.06,16.95319365]
[1744389003439,0.05539073,119.08,119.07,20.47052318]
[1744389004037,0.05539073,119.08,119.07,20.47017874]
[1744389007134,8.4001,119.12,119.09,8.4011]
[1744389007339,8.4001,119.12,119.06,4.49685921]
[1744389007340,38.147,119.14,119.1,8.49213444]
[1744389007532,38.147,119.14,119.11,8.49213444]
[1744389007533,35.9406,119.14,119.11,8.49213444]
[1744389007934,8.3995,119.13,119.11,16.89243444]
[1744389008238,0.0608708,119.13,119.12,8.49213444]
[1744389008539,0.0608708,119.13,119.12,16.89183444]
[1744389010241,0.0608708,119.13,119.12,8.49213444]
[1744389010638,0.0608708,119.13,119.12,12.05578776]
[1744389010840,0.0608708,119.13,119.12,20.45548776]
[1744389011137,33.62,119.21,119.12,12.05578776]
[1744389011337,33.62,119.21,119.17,8.49213444]
[1744389011846,33.62,119.21,119.19,8.49213444]
[1744389012039,33.62,119.21,119.18,8.49213444]
[1744389012232,33.62,119.21,119.18,8.55654682]
[1744389012438,42.16516647,119.21,119.18,0.06441238]
[1744389012843,8.49213444,119.19,119.18,0.06441238]
[1744389013043,33.67303203,119.21,119.18,0.06441238]
[1744389013346,8.3948,119.19,119.18,0.06441238]
[1744389013644,8.49213444,119.19,119.15,8.49213444]
[1744389013846,8.397,119.16,119.14,8.49213444]
[1744389014645,8.45473691,119.16,119.14,8.54511082]
[1744389015446,0.05773691,119.16,119.15,8.49213444]
[1744389016044,0.05773691,119.16,119.15,16.88973444]
[1744389016447,0.05773691,119.16,119.14,8.54511082]
[1744389016648,8.3976,119.15,119.14,8.54511082]
[1744389017246,0.05773691,119.16,119.14,8.54511082]
[1744389017443,0.05773691,119.16,119.15,8.49213444]
[1744389018447,0.05773691,119.16,119.15,16.88973444]
[1744389019050,2.2593,119.22,119.15,8.49213444]
[1744389019252,2.2593,119.22,119.19,8.49213444]
[1744389019444,2.2593,119.22,119.18,8.49213444]
[1744389019643,10.75143444,119.22,119.17,8.49213444]
[1744389019853,33.58,119.21,119.17,8.49213444]
[1744389020047,0.06296516,119.2,119.18,0.0637695]
[1744389020451,0.06296516,119.2,119.18,8.55590394]
[1744389020652,0.06296516,119.2,119.19,8.49213444]
[1744389021146,8.45706516,119.2,119.18,8.55590394]
[1744389021352,0.06296516,119.2,119.18,8.55590394]
[1744389021650,8.3948,119.19,119.18,8.55590394]
[1744389022547,8.45736516,119.2,119.18,8.55590394]
[1744389022748,8.45736516,119.2,119.19,8.49213444]
[1744389024148,8.45736516,119.2,119.18,0.0637695]
[1744389024350,8.3948,119.19,119.18,0.0637695]
[1744389024549,0.06296516,119.2,119.18,8.55590394]
[1744389024849,0.06296516,119.2,119.19,8.49213444]
[1744389025055,8.45746516,119.2,119.19,8.49213444]
[1744389025358,0.06296516,119.2,119.19,8.49213444]
[1744389025743,0.06296516,119.2,119.19,16.88693444]
[1744389026453,0.06296516,119.2,119.19,8.49213444]
[1744389026649,8.45706516,119.2,119.19,8.49213444]
[1744389028056,8.3948,119.19,119.18,8.55590394]
[1744389028257,0.06296516,119.2,119.18,8.55590394]
[1744389028556,0.06296516,119.2,119.19,8.49213444]
[1744389028759,8.45736516,119.2,119.19,8.49213444]
[1744389029161,0.06296516,119.2,119.19,8.49213444]
[1744389030257,0.06296516,119.2,119.19,16.88693444]
[1744389030558,8.3916,119.24,119.19,8.49213444]
[1744389030853,8.3916,119.24,119.22,8.49213444]
[1744389031055,12.94613444,119.26,119.21,16.88513444]
[1744389031258,12.94613444,119.26,119.21,8.49213444]
[1744389031459,8.49213444,119.24,119.19,16.88663444]
[1744389031660,8.3934,119.21,119.2,0.06312064]
[1744389035460,8.393,119.22,119.2,8.55525508]
[1744389036163,8.45396421,119.23,119.2,8.55525508]
[1744389036359,0.06156421,119.23,119.22,8.49213444]
[1744389036870,0.06156421,119.23,119.22,16.88483444]
[1744389038675,4.2752,119.29,119.24,8.3912]
[1744389038878,4.2752,119.29,119.25,8.49213444]
[1744389039377,12.76733444,119.29,119.25,8.49213444]
[1744389039874,8.49213444,119.27,119.26,0.0530128]
[1744389040070,42.05213444,119.27,119.21,8.49213444]
[1744389040271,8.49213444,119.26,119.21,8.49213444]
[1744389040471,42.05213444,119.27,119.22,16.88453444]
[1744389040666,33.56,119.27,119.23,8.49213444]
[1744389040978,8.3906,119.25,119.23,8.49213444]
[1744389041166,0.06099056,119.26,119.24,8.54735098]
[1744389041369,0.06099056,119.26,119.24,8.49213444]
[1744389041570,8.45089056,119.26,119.24,8.54751369]
[1744389041871,8.45089056,119.26,119.24,16.93861369]
[1744389042176,8.45089056,119.26,119.24,8.54751369]
[1744389042374,0.06099056,119.26,119.24,0.05537925]
[1744389042574,0.06099056,119.26,119.24,8.54751369]
[1744389043079,0.06099056,119.26,119.25,16.88273444]
[1744389043267,0.06099056,119.26,119.25,8.49213444]
[1744389043468,0.06099056,119.26,119.24,8.54751369]
[1744389044073,0.06099056,119.26,119.25,8.49213444]
[1744389044275,0.06099056,119.26,119.24,16.93841369]
[1744389044475,0.06099056,119.26,119.24,8.54751369]
[1744389044674,8.45129056,119.26,119.24,8.54751369]
[1744389045382,0.06099056,119.26,119.24,16.93841369]
[1744389045681,0.06099056,119.26,119.24,8.54751369]
[1744389045882,8.45109056,119.26,119.24,8.54751369]
[1744389047081,0.06099056,119.26,119.24,16.93851369]
[1744389047282,0.06099056,119.26,119.24,8.54751369]
[1744389047482,8.45139056,119.26,119.24,8.54751369]
[1744389048784,0.06099056,119.26,119.24,16.93851369]
[1744389048979,0.06099056,119.26,119.24,8.54751369]
[1744389049178,0.06099056,119.26,119.24,0.05537925]
[1744389049379,8.45149056,119.26,119.24,0.05537925]
[1744389049584,8.553125,119.26,119.24,0.05537925]
[1744389049781,8.49213444,119.25,119.24,0.05537925]
[1744389049975,0.06099056,119.26,119.24,33.52]
[1744389050180,8.49213444,119.33,119.25,12.0415294]
[1744389050381,8.49213444,119.33,119.24,33.52]
[1744389050681,33.52,119.32,119.27,8.49213444]
[1744389050883,33.52,119.32,119.28,8.49213444]
[1744389051078,33.52,119.32,119.24,33.52]
[1744389051379,0.06223654,119.31,119.3,8.49213444]
[1744389051579,8.3845,119.34,119.3,16.87883444]
[1744389051777,0.05824553,119.32,119.31,8.49213444]
[1744389052285,0.05824553,119.32,119.31,16.87843444]
[1744389052984,604.08,119.37,119.33,8.3845]
[1744389053184,637.6,119.37,119.33,16.87663444]
[1744389053581,645.9824,119.37,119.33,16.87663444]
[1744389054086,0.05985876,119.36,119.34,0.05634642]
[1744389054479,0.05985876,119.36,119.34,16.93238086]
[1744389056385,8.5519932,119.36,119.34,0.05634642]
[1744389056784,16.9352932,119.36,119.34,0.05634642]
[1744389056980,8.5519932,119.36,119.34,0.05634642]
[1744389057388,16.9352932,119.36,119.34,0.05634642]
[1744389057686,8.44315876,119.36,119.34,0.05634642]
[1744389057886,8.44315876,119.36,119.34,8.44044642]
[1744389058687,8.44315876,119.36,119.34,0.05634642]
[1744389059085,0.05985876,119.36,119.34,8.44014642]
[1744389059286,8.5519932,119.36,119.34,0.05634642]
[1744389059490,10.7471932,119.36,119.34,0.05634642]
[1744389059782,8.3835,119.35,119.34,0.05634642]
[1744389060883,16.87563444,119.35,119.34,0.05634642]
[1744389062592,8.3835,119.35,119.34,0.05634642]
[1744389063084,16.87563444,119.35,119.34,0.05634642]
[1744389064295,8.3835,119.35,119.34,0.05634642]
[1744389064591,16.87563444,119.35,119.34,0.05634642]
[1744389067889,8.3857,119.32,119.29,8.49213444]
[1744389068401,8.3857,119.32,119.29,16.87933444]
[1744389068997,8.44018337,119.32,119.29,16.9332062]
[1744389072398,8.3864,119.31,119.29,16.9332062]
[1744389073902,8.3864,119.31,119.29,8.5460062]
[1744389076905,8.3864,119.31,119.3,8.49213444]
[1744389077602,0.05448337,119.32,119.29,0.05387176]
[1744389077603,0.05448337,119.32,119.29,8.5460062]
[1744389078407,8.3867,119.31,119.29,16.9337062]
[1744389078801,8.3867,119.31,119.3,8.49213444]
[1744389083510,0.05448337,119.32,119.3,8.49213444]
[1744389083815,0.05448337,119.32,119.31,8.49213444]
[1744389084516,2.1952,119.36,119.31,8.49213444]
[1744389084716,8.49213444,119.39,119.35,8.49213444]
[1744389085014,41.97213444,119.4,119.36,8.49213444]
[1744389085614,29.28800931,119.44,119.39,8.49213444]
[1744389085818,42.03284375,119.44,119.39,8.49213444]
[1744389086022,0.06151983,119.43,119.4,0.05659732]
[1744389086222,0.06151983,119.43,119.4,8.54873176]
[1744389086418,0.06151983,119.43,119.42,8.49213444]
[1744389087722,0.06151983,119.43,119.42,16.87073444]
[1744389088117,25.83420931,119.44,119.42,8.49213444]
[1744389088425,117.15203726,119.46,119.43,45.50068093]
[1744389088624,117.15203726,119.46,119.45,8.49213444]